[Event "*** Titled Tuesday Blitz"]
[Site "Chess.com"]
[Date "2021.04.20"]
[Round "10"]
[White "superchess02"]
[Black "federicosellitti"]
[Result "1-0"]
[WhiteElo "2743"]
[BlackElo "2602"]
[TimeControl "180+1"]
[EndTime "11:55:50 PDT"]
[Termination "superchess02 won by checkmate"]

1. d4 {[%clk 0:03:00.9]} 1... d5 {[%clk 0:02:59]} 2. c4 {[%clk 0:03:01.3]} 2...
Nc6 {[%clk 0:02:59.1]} 3. Nf3 {[%clk 0:03:01.8]} 3... Bg4 {[%clk 0:02:58.1]} 4.
e3 {[%clk 0:03:00.6]} 4... Nf6 {[%clk 0:02:57.4]} 5. h3 {[%clk 0:02:58.2]} 5...
Bxf3 {[%clk 0:02:56.1]} 6. Qxf3 {[%clk 0:02:59.1]} 6... e5 {[%clk 0:02:55.5]} 7.
cxd5 {[%clk 0:02:56.2]} 7... Qxd5 {[%clk 0:02:54.4]} 8. Qxd5 {[%clk 0:02:51.7]}
8... Nxd5 {[%clk 0:02:55.3]} 9. dxe5 {[%clk 0:02:52.6]} 9... Nxe5 {[%clk
0:02:55.2]} 10. Bd2 {[%clk 0:02:47]} 10... O-O-O {[%clk 0:02:50.4]} 11. a3
{[%clk 0:02:44.8]} 11... g6 {[%clk 0:02:27.7]} 12. f4 {[%clk 0:02:34.7]} 12...
Nc6 {[%clk 0:02:13]} 13. e4 {[%clk 0:02:34.9]} 13... Nf6 {[%clk 0:02:07.4]} 14.
Bc3 {[%clk 0:02:30.3]} 14... Bg7 {[%clk 0:02:07.2]} 15. Nd2 {[%clk 0:02:28.1]}
15... Rhe8 {[%clk 0:01:59.9]} 16. O-O-O {[%clk 0:02:27.9]} 16... Nd4 {[%clk
0:01:39]} 17. e5 {[%clk 0:02:16.1]} 17... Nh5 {[%clk 0:01:32.4]} 18. Ne4 {[%clk
0:01:45.7]} 18... Nb3+ {[%clk 0:01:16.4]} 19. Kc2 {[%clk 0:01:45.7]} 19... Rxd1
{[%clk 0:01:15.8]} 20. Kxd1 {[%clk 0:01:46.6]} 20... Nxf4 {[%clk 0:01:14.4]} 21.
Bc4 {[%clk 0:01:47]} 21... Rd8+ {[%clk 0:01:12.1]} 22. Ke1 {[%clk 0:01:30.7]}
22... Nc1 {[%clk 0:00:54.8]} 23. Kf2 {[%clk 0:01:24.7]} 23... Ncd3+ {[%clk
0:00:50]} 24. Kf3 {[%clk 0:01:25]} 24... Bxe5 {[%clk 0:00:42.7]} 25. Bb3 {[%clk
0:00:52.6]} 25... Bxc3 {[%clk 0:00:32.2]} 26. bxc3 {[%clk 0:00:53.5]} 26... f5
{[%clk 0:00:23.1]} 27. Ng5 {[%clk 0:00:50.2]} 27... Nc5 {[%clk 0:00:22.4]} 28.
Kxf4 {[%clk 0:00:33]} 28... Nxb3 {[%clk 0:00:22.1]} 29. Nxh7 {[%clk 0:00:33.9]}
29... Rd3 {[%clk 0:00:16.6]} 30. Nf8 {[%clk 0:00:33.6]} 30... Rxc3 {[%clk
0:00:14]} 31. Nxg6 {[%clk 0:00:33.8]} 31... Nd4 {[%clk 0:00:12.3]} 32. h4 {[%clk
0:00:33.5]} 32... Rxa3 {[%clk 0:00:06.5]} 33. h5 {[%clk 0:00:33.9]} 33... Ra6
{[%clk 0:00:07.2]} 34. h6 {[%clk 0:00:28.9]} 34... Ne6+ {[%clk 0:00:04]} 35.
Kxf5 {[%clk 0:00:29.2]} 35... Nd4+ {[%clk 0:00:04.2]} 36. Ke5 {[%clk 0:00:24.6]}
36... Rxg6 {[%clk 0:00:04.6]} 37. Kxd4 {[%clk 0:00:06.9]} 37... Rg8 {[%clk
0:00:03.9]} 38. h7 {[%clk 0:00:07.4]} 38... Rh8 {[%clk 0:00:04.4]} 39. Ke5
{[%clk 0:00:08.3]} 39... Kd7 {[%clk 0:00:04.6]} 40. Kf6 {[%clk 0:00:08.7]} 40...
c5 {[%clk 0:00:05]} 41. g4 {[%clk 0:00:08.7]} 41... c4 {[%clk 0:00:04.2]} 42. g5
{[%clk 0:00:09.3]} 42... b5 {[%clk 0:00:01.6]} 43. g6 {[%clk 0:00:09.6]} 43...
b4 {[%clk 0:00:02.5]} 44. g7 {[%clk 0:00:10]} 44... Rxh7 {[%clk 0:00:03]} 45.
Rxh7 {[%clk 0:00:10.2]} 45... c3 {[%clk 0:00:03.9]} 46. g8=Q+ {[%clk 0:00:10.7]}
46... Kc6 {[%clk 0:00:04.7]} 47. Qe6+ {[%clk 0:00:11]} 47... Kb5 {[%clk
0:00:05.6]} 48. Rb7+ {[%clk 0:00:10.4]} 48... Ka4 {[%clk 0:00:06.5]} 49. Rxa7+
{[%clk 0:00:10.8]} 49... Kb5 {[%clk 0:00:06.2]} 50. Rb7+ {[%clk 0:00:11.3]}
50... Kc5 {[%clk 0:00:07.1]} 51. Ke5 {[%clk 0:00:09.6]} 51... c2 {[%clk
0:00:06.7]} 52. Qd5# {[%clk 0:00:09.9]} 1-0

[Event "*** Titled Tuesday Blitz"]
[Site "Chess.com"]
[Date "2021.04.20"]
[Round "10"]
[White "champ2005"]
[Black "Murad_Ibrahimli"]
[Result "0-1"]
[WhiteElo "2970"]
[BlackElo "2763"]
[TimeControl "180+1"]
[EndTime "11:55:51 PDT"]
[Termination "Murad_Ibrahimli won by resignation"]

1. c4 {[%clk 0:03:00.9]} 1... Nf6 {[%clk 0:02:59.3]} 2. Nc3 {[%clk 0:03:00]}
2... e6 {[%clk 0:02:58.3]} 3. e3 {[%clk 0:02:53.3]} 3... c5 {[%clk 0:02:58.2]}
4. Nf3 {[%clk 0:02:52.1]} 4... a6 {[%clk 0:02:49.6]} 5. d4 {[%clk 0:02:53]} 5...
d5 {[%clk 0:02:49]} 6. a3 {[%clk 0:02:50.5]} 6... dxc4 {[%clk 0:02:45.6]} 7.
Bxc4 {[%clk 0:02:49.1]} 7... b5 {[%clk 0:02:45.7]} 8. Bd3 {[%clk 0:02:48.3]}
8... Bb7 {[%clk 0:02:45.1]} 9. O-O {[%clk 0:02:48.5]} 9... Nbd7 {[%clk
0:02:44.5]} 10. Qe2 {[%clk 0:02:48.4]} 10... Be7 {[%clk 0:02:44.5]} 11. Rd1
{[%clk 0:02:48.9]} 11... Qc7 {[%clk 0:02:43]} 12. Bd2 {[%clk 0:02:43.3]} 12...
O-O {[%clk 0:02:42.2]} 13. Rac1 {[%clk 0:02:43.4]} 13... Rac8 {[%clk 0:02:41.9]}
14. Bb1 {[%clk 0:02:38.8]} 14... Qb8 {[%clk 0:02:41.9]} 15. Ba2 {[%clk
0:02:28.2]} 15... Qa8 {[%clk 0:02:39.4]} 16. h3 {[%clk 0:02:08]} 16... cxd4
{[%clk 0:01:58.6]} 17. exd4 {[%clk 0:02:08.9]} 17... Bxf3 {[%clk 0:01:57.9]} 18.
gxf3 {[%clk 0:02:08.6]} 18... Nb6 {[%clk 0:01:54.7]} 19. Kh1 {[%clk 0:02:07.8]}
19... Nc4 {[%clk 0:01:52.3]} 20. Be3 {[%clk 0:01:57]} 20... Nd5 {[%clk
0:01:47.6]} 21. Ne4 {[%clk 0:01:54.2]} 21... Qb8 {[%clk 0:01:35.3]} 22. Rg1
{[%clk 0:01:41.4]} 22... Nf4 {[%clk 0:00:52.6]} 23. Qf1 {[%clk 0:00:58.7]} 23...
Nxe3 {[%clk 0:00:49.2]} 24. fxe3 {[%clk 0:00:57.8]} 24... Rxc1 {[%clk
0:00:48.1]} 25. Qxc1 {[%clk 0:00:50]} 25... Ne2 {[%clk 0:00:48.2]} 26. Qe1
{[%clk 0:00:50.2]} 26... Nxg1 {[%clk 0:00:48.6]} 27. Qxg1 {[%clk 0:00:50.7]}
27... Qc7 {[%clk 0:00:47.2]} 28. Nc3 {[%clk 0:00:45.1]} 28... a5 {[%clk
0:00:39.1]} 29. Bb1 {[%clk 0:00:33.6]} 29... b4 {[%clk 0:00:37.9]} 30. axb4
{[%clk 0:00:34.5]} 30... axb4 {[%clk 0:00:38.5]} 31. Ne2 {[%clk 0:00:35]} 31...
Rc8 {[%clk 0:00:34.9]} 32. Qd1 {[%clk 0:00:35.1]} 32... Bg5 {[%clk 0:00:32]} 33.
Qd3 {[%clk 0:00:32.1]} 33... g6 {[%clk 0:00:28.7]} 34. Kg2 {[%clk 0:00:32.3]}
34... Qa5 {[%clk 0:00:23.8]} 35. Qd2 {[%clk 0:00:23]} 35... Bh6 {[%clk
0:00:23.5]} 36. Ng3 {[%clk 0:00:20.3]} 36... Qa1 {[%clk 0:00:15.8]} 37. Qd3
{[%clk 0:00:09.9]} 37... b3 {[%clk 0:00:15]} 38. Ne2 {[%clk 0:00:10.8]} 38...
Qxb2 {[%clk 0:00:14.9]} 39. f4 {[%clk 0:00:11.1]} 39... Bg7 {[%clk 0:00:14.1]}
40. Kf3 {[%clk 0:00:11.5]} 40... h5 {[%clk 0:00:13.2]} 41. e4 {[%clk 0:00:10.6]}
41... Rc2 {[%clk 0:00:11.2]} 42. Bxc2 {[%clk 0:00:10.4]} 42... bxc2 {[%clk
0:00:12]} 43. Qd2 {[%clk 0:00:10.9]} 43... Bxd4 {[%clk 0:00:11.4]} 44. e5 {[%clk
0:00:09.3]} 44... Qb3+ {[%clk 0:00:11.1]} 45. Kg2 {[%clk 0:00:09.2]} 45... Bb2
{[%clk 0:00:11.4]} 46. Qd8+ {[%clk 0:00:08.9]} 46... Kh7 {[%clk 0:00:11.4]} 47.
Qf6 {[%clk 0:00:09.1]} 47... Qd5+ {[%clk 0:00:11.8]} 48. Kg3 {[%clk 0:00:09.6]}
48... Qd7 {[%clk 0:00:12.3]} 49. f5 {[%clk 0:00:07.7]} 49... exf5 {[%clk
0:00:12.2]} 50. e6 {[%clk 0:00:07.4]} 50... Qd6+ {[%clk 0:00:11.7]} 0-1

[Event "*** Titled Tuesday Blitz"]
[Site "Chess.com"]
[Date "2021.04.20"]
[Round "10"]
[White "FMOlexandrProhorov"]
[Black "ClydeHillKid"]
[Result "1-0"]
[WhiteElo "2263"]
[BlackElo "2407"]
[TimeControl "180+1"]
[EndTime "11:55:53 PDT"]
[Termination "FMOlexandrProhorov won by resignation"]

1. Nf3 {[%clk 0:02:58.9]} 1... d5 {[%clk 0:02:59.7]} 2. d4 {[%clk 0:02:57.8]}
2... Nf6 {[%clk 0:02:59.5]} 3. c4 {[%clk 0:02:56.1]} 3... e6 {[%clk 0:02:59.8]}
4. Nc3 {[%clk 0:02:55.5]} 4... c6 {[%clk 0:03:00.2]} 5. e3 {[%clk 0:02:55.7]}
5... Nbd7 {[%clk 0:02:59.9]} 6. Qc2 {[%clk 0:02:56.1]} 6... Bd6 {[%clk
0:03:00.3]} 7. g4 {[%clk 0:02:56.4]} 7... Nxg4 {[%clk 0:02:17.9]} 8. Rg1 {[%clk
0:02:56.2]} 8... h5 {[%clk 0:02:15.1]} 9. h3 {[%clk 0:02:56]} 9... Nh6 {[%clk
0:02:15.4]} 10. Rxg7 {[%clk 0:02:54.6]} 10... Qf6 {[%clk 0:02:15.2]} 11. Rh7
{[%clk 0:02:49.7]} 11... Rg8 {[%clk 0:01:57.2]} 12. e4 {[%clk 0:02:35.5]} 12...
Nf8 {[%clk 0:01:54.2]} 13. Rxh6 {[%clk 0:02:33.9]} 13... Qxf3 {[%clk 0:01:53.9]}
14. cxd5 {[%clk 0:02:29.3]} 14... cxd5 {[%clk 0:01:41.4]} 15. Nb5 {[%clk
0:02:24.9]} 15... Bb4+ {[%clk 0:01:40.6]} 16. Bd2 {[%clk 0:02:24.8]} 16... Bxd2+
{[%clk 0:01:39.7]} 17. Qxd2 {[%clk 0:02:25.7]} 17... Qxe4+ {[%clk 0:01:36.5]}
18. Qe3 {[%clk 0:02:26]} 18... Qxe3+ {[%clk 0:01:33.4]} 19. fxe3 {[%clk
0:02:26.9]} 19... Ke7 {[%clk 0:01:31.7]} 20. Rxh5 {[%clk 0:02:22.9]} 20... Bd7
{[%clk 0:01:31.2]} 21. Nc3 {[%clk 0:02:14.4]} 21... Bc6 {[%clk 0:01:18.3]} 22.
Kf2 {[%clk 0:02:13.2]} 22... Nd7 {[%clk 0:01:17.6]} 23. Bd3 {[%clk 0:02:06.3]}
23... Nf6 {[%clk 0:01:17.7]} 24. Rh4 {[%clk 0:02:06.8]} 24... Rg7 {[%clk
0:01:12.4]} 25. Rg1 {[%clk 0:02:07.4]} 25... Rag8 {[%clk 0:01:12.3]} 26. Rxg7
{[%clk 0:02:07.2]} 26... Rxg7 {[%clk 0:01:13.2]} 27. Rh8 {[%clk 0:02:07.7]}
27... Be8 {[%clk 0:01:11.5]} 28. Ne2 {[%clk 0:02:03.4]} 28... a6 {[%clk
0:01:02.6]} 29. Nf4 {[%clk 0:02:02.9]} 29... Kd6 {[%clk 0:00:51]} 30. Rh6 {[%clk
0:01:56.6]} 30... Nd7 {[%clk 0:00:41.3]} 31. h4 {[%clk 0:01:54.4]} 31... Kc7
{[%clk 0:00:33.5]} 32. Rh8 {[%clk 0:01:50.3]} 32... Nf6 {[%clk 0:00:33.3]} 33.
Rh6 {[%clk 0:01:49.3]} 33... Ng8 {[%clk 0:00:31.4]} 34. Rxe6 {[%clk 0:01:44.3]}
34... Bb5 {[%clk 0:00:24.6]} 35. Bxb5 {[%clk 0:01:36.8]} 35... axb5 {[%clk
0:00:25.5]} 36. Re5 {[%clk 0:01:36]} 36... Kc6 {[%clk 0:00:22]} 37. Rxd5 {[%clk
0:01:33.2]} 37... Nf6 {[%clk 0:00:21.9]} 38. Rc5+ {[%clk 0:01:33.3]} 38... Kd6
{[%clk 0:00:19.2]} 39. Rf5 {[%clk 0:01:31.6]} 39... Ne4+ {[%clk 0:00:18.1]} 40.
Kf3 {[%clk 0:01:30.6]} 40... Nd2+ {[%clk 0:00:18.4]} 41. Ke2 {[%clk 0:01:30.2]}
41... Nc4 {[%clk 0:00:18.8]} 42. b3 {[%clk 0:01:25.5]} 42... Nb6 {[%clk
0:00:18.9]} 43. Rxb5 {[%clk 0:01:24.5]} 43... Kc6 {[%clk 0:00:19.2]} 44. Rc5+
{[%clk 0:01:24.1]} 44... Kd6 {[%clk 0:00:19.6]} 45. h5 {[%clk 0:01:24.4]} 45...
Nd7 {[%clk 0:00:18.4]} 46. Rd5+ {[%clk 0:01:23.6]} 46... Ke7 {[%clk 0:00:18.6]}
47. h6 {[%clk 0:01:21.7]} 47... Rh7 {[%clk 0:00:18.7]} 48. Rh5 {[%clk
0:01:18.6]} 48... Nf6 {[%clk 0:00:19]} 49. Rh4 {[%clk 0:01:18.2]} 49... Kd6
{[%clk 0:00:19]} 50. Kd3 {[%clk 0:01:18.2]} 50... Rh8 {[%clk 0:00:16.7]} 51. e4
{[%clk 0:01:17.7]} 51... Nd7 {[%clk 0:00:17.2]} 52. e5+ {[%clk 0:01:17.6]} 52...
Ke7 {[%clk 0:00:16.4]} 53. Nd5+ {[%clk 0:01:17]} 53... Ke6 {[%clk 0:00:16.3]}
54. Ne3 {[%clk 0:01:16.9]} 54... Rh7 {[%clk 0:00:14.6]} 55. Ke4 {[%clk
0:01:16.5]} 55... f6 {[%clk 0:00:11.7]} 56. d5+ {[%clk 0:01:11.5]} 56... Ke7
{[%clk 0:00:12.1]} 57. Nf5+ {[%clk 0:01:07.4]} 57... Kd8 {[%clk 0:00:10.7]} 58.
e6 {[%clk 0:01:06.5]} 58... Nc5+ {[%clk 0:00:10.7]} 59. Kd4 {[%clk 0:01:05.2]}
59... b6 {[%clk 0:00:10.6]} 60. Rg4 {[%clk 0:00:57.8]} 60... Kc7 {[%clk
0:00:06.4]} 61. Rg7+ {[%clk 0:00:56.8]} 61... Rxg7 {[%clk 0:00:05.3]} 62. hxg7
{[%clk 0:00:57.7]} 1-0

[Event "*** Titled Tuesday Blitz"]
[Site "Chess.com"]
[Date "2021.04.20"]
[Round "10"]
[White "frederiksvane"]
[Black "FairChess_on_YouTube"]
[Result "0-1"]
[WhiteElo "2760"]
[BlackElo "3006"]
[TimeControl "180+1"]
[EndTime "11:55:54 PDT"]
[Termination "FairChess_on_YouTube won by resignation"]

1. e4 {[%clk 0:03:00.9]} 1... c5 {[%clk 0:02:55.4]} 2. Nf3 {[%clk 0:03:00.9]}
2... e6 {[%clk 0:02:55.8]} 3. d4 {[%clk 0:03:01]} 3... cxd4 {[%clk 0:02:56.7]}
4. Nxd4 {[%clk 0:03:01.9]} 4... Nc6 {[%clk 0:02:57.2]} 5. Nc3 {[%clk 0:03:01.7]}
5... Qc7 {[%clk 0:02:57.2]} 6. g3 {[%clk 0:03:01.8]} 6... a6 {[%clk 0:02:55.5]}
7. Bg2 {[%clk 0:03:02.2]} 7... Nf6 {[%clk 0:02:56]} 8. O-O {[%clk 0:03:02.5]}
8... Nxd4 {[%clk 0:02:56]} 9. Qxd4 {[%clk 0:03:03.4]} 9... Bc5 {[%clk
0:02:56.3]} 10. Bf4 {[%clk 0:03:04.1]} 10... d6 {[%clk 0:02:55.5]} 11. Qd2
{[%clk 0:03:04.4]} 11... h6 {[%clk 0:02:55.7]} 12. Rad1 {[%clk 0:03:04.6]} 12...
e5 {[%clk 0:02:56]} 13. Be3 {[%clk 0:03:05.1]} 13... Bxe3 {[%clk 0:02:56.3]} 14.
Qxe3 {[%clk 0:03:06]} 14... Be6 {[%clk 0:02:56.3]} 15. h3 {[%clk 0:02:59.2]}
15... O-O {[%clk 0:02:51.7]} 16. f4 {[%clk 0:02:57.7]} 16... Rfd8 {[%clk
0:02:41.5]} 17. Rf2 {[%clk 0:02:49.3]} 17... Rac8 {[%clk 0:02:39]} 18. f5 {[%clk
0:02:26.8]} 18... Bc4 {[%clk 0:02:37.2]} 19. g4 {[%clk 0:02:23.5]} 19... b5
{[%clk 0:02:34.5]} 20. a3 {[%clk 0:02:12.2]} 20... a5 {[%clk 0:02:34.3]} 21. g5
{[%clk 0:01:50.5]} 21... hxg5 {[%clk 0:02:32.8]} 22. Qxg5 {[%clk 0:01:51.4]}
22... b4 {[%clk 0:02:31.2]} 23. axb4 {[%clk 0:01:47.8]} 23... axb4 {[%clk
0:02:32.1]} 24. Nb1 {[%clk 0:01:48.7]} 24... Ba2 {[%clk 0:02:23.9]} 25. Kh1
{[%clk 0:01:26.9]} 25... Kf8 {[%clk 0:02:17.4]} 26. Bf3 {[%clk 0:01:23]} 26...
Ke7 {[%clk 0:02:08.1]} 27. Rg2 {[%clk 0:01:12.7]} 27... Rh8 {[%clk 0:02:04.8]}
28. Kh2 {[%clk 0:01:09]} 28... Qc5 {[%clk 0:01:52.4]} 29. Nd2 {[%clk 0:01:01]}
29... Qxc2 {[%clk 0:01:47.6]} 30. Nf1 {[%clk 0:00:56.4]} 30... Qc5 {[%clk
0:01:42.6]} 31. Ne3 {[%clk 0:00:46.1]} 31... Rh7 {[%clk 0:01:41.3]} 32. Rc2
{[%clk 0:00:39.2]} 32... Qxc2+ {[%clk 0:01:29.7]} 33. Nxc2 {[%clk 0:00:39.4]}
33... Rxc2+ {[%clk 0:01:30.6]} 34. Rd2 {[%clk 0:00:39.9]} 34... b3 {[%clk
0:01:28.2]} 35. Qe3 {[%clk 0:00:33.3]} 35... Rh4 {[%clk 0:01:18.8]} 36. Qf2
{[%clk 0:00:13.5]} 36... Rf4 {[%clk 0:01:07.2]} 37. Rxc2 {[%clk 0:00:03.8]}
37... bxc2 {[%clk 0:01:03]} 38. Qxc2 {[%clk 0:00:04.7]} 38... Rxf3 {[%clk
0:01:02.5]} 39. Qc7+ {[%clk 0:00:03.5]} 39... Nd7 {[%clk 0:01:02.3]} 40. Qc2
{[%clk 0:00:02.5]} 40... f6 {[%clk 0:00:44.9]} 41. b4 {[%clk 0:00:02]} 41... Bf7
{[%clk 0:00:42.4]} 42. Qe2 {[%clk 0:00:01.8]} 42... Rb3 {[%clk 0:00:42.4]} 43.
b5 {[%clk 0:00:02.1]} 43... Nc5 {[%clk 0:00:42.5]} 44. Qg2 {[%clk 0:00:02.1]}
44... Rxb5 {[%clk 0:00:41.8]} 45. Qxg7 {[%clk 0:00:02.1]} 45... Rb2+ {[%clk
0:00:41.2]} 46. Kg1 {[%clk 0:00:02]} 46... Nxe4 {[%clk 0:00:41.2]} 47. h4 {[%clk
0:00:02.6]} 47... Rb3 {[%clk 0:00:40.6]} 48. Kf1 {[%clk 0:00:02]} 48... Rf3+
{[%clk 0:00:37.5]} 49. Ke1 {[%clk 0:00:02.1]} 49... Rxf5 {[%clk 0:00:34.2]} 50.
Qg4 {[%clk 0:00:02.4]} 50... Rf4 {[%clk 0:00:34.5]} 51. Qh3 {[%clk 0:00:01.3]}
51... Nf2 {[%clk 0:00:32.9]} 52. Qh2 {[%clk 0:00:01.4]} 52... Ng4 {[%clk
0:00:32.7]} 53. Qh3 {[%clk 0:00:01.4]} 53... Re4+ {[%clk 0:00:32.3]} 54. Kd2
{[%clk 0:00:01.8]} 54... Rd4+ {[%clk 0:00:32]} 55. Ke1 {[%clk 0:00:02]} 55...
Rd1+ {[%clk 0:00:29.4]} 56. Ke2 {[%clk 0:00:02.4]} 56... Bc4+ {[%clk 0:00:29.4]}
57. Kxd1 {[%clk 0:00:02.5]} 57... Nf2+ {[%clk 0:00:29.1]} 0-1

[Event "*** Titled Tuesday Blitz"]
[Site "Chess.com"]
[Date "2021.04.20"]
[Round "10"]
[White "Cuajada_Zero"]
[Black "muchojogo"]
[Result "0-1"]
[WhiteElo "2308"]
[BlackElo "2460"]
[TimeControl "180+1"]
[EndTime "11:55:55 PDT"]
[Termination "muchojogo won on time"]

1. d4 {[%clk 0:03:00.9]} 1... Nf6 {[%clk 0:02:59.8]} 2. Bg5 {[%clk 0:02:59.7]}
2... c5 {[%clk 0:02:59.7]} 3. Nc3 {[%clk 0:02:57.9]} 3... cxd4 {[%clk
0:02:59.3]} 4. Qxd4 {[%clk 0:02:58.8]} 4... Nc6 {[%clk 0:02:59.7]} 5. Qh4 {[%clk
0:02:58.7]} 5... Qb6 {[%clk 0:02:57.7]} 6. O-O-O {[%clk 0:02:57.4]} 6... Qb4
{[%clk 0:02:47.4]} 7. Qxb4 {[%clk 0:02:48.5]} 7... Nxb4 {[%clk 0:02:48.3]} 8. e4
{[%clk 0:02:43]} 8... d6 {[%clk 0:02:41.6]} 9. Bc4 {[%clk 0:02:31.7]} 9... Nc6
{[%clk 0:02:22]} 10. f3 {[%clk 0:02:25.1]} 10... a6 {[%clk 0:02:20.6]} 11. Nge2
{[%clk 0:02:19.1]} 11... e6 {[%clk 0:02:14]} 12. Bb3 {[%clk 0:02:05.3]} 12...
Be7 {[%clk 0:02:11.7]} 13. Na4 {[%clk 0:02:00.1]} 13... b5 {[%clk 0:02:06.1]}
14. Nb6 {[%clk 0:01:59.3]} 14... Rb8 {[%clk 0:02:06.7]} 15. Nxc8 {[%clk
0:01:59.8]} 15... Rxc8 {[%clk 0:02:07.6]} 16. Rd2 {[%clk 0:01:49.5]} 16... Na5
{[%clk 0:02:04.8]} 17. Rhd1 {[%clk 0:01:45.7]} 17... Nxb3+ {[%clk 0:02:04.1]}
18. axb3 {[%clk 0:01:45.4]} 18... Nxe4 {[%clk 0:02:00.7]} 19. Bxe7 {[%clk
0:01:26.4]} 19... Nxd2 {[%clk 0:02:00.8]} 20. Rxd2 {[%clk 0:01:27.3]} 20... Kxe7
{[%clk 0:02:00.3]} 21. b4 {[%clk 0:01:10.9]} 21... Rc4 {[%clk 0:01:59.5]} 22. c3
{[%clk 0:01:10.8]} 22... Rhc8 {[%clk 0:01:59.9]} 23. Kb1 {[%clk 0:01:08.3]}
23... Rh4 {[%clk 0:01:58.7]} 24. h3 {[%clk 0:01:07.5]} 24... Rh5 {[%clk
0:01:53.9]} 25. Nf4 {[%clk 0:01:05.4]} 25... Rg5 {[%clk 0:01:53.2]} 26. Re2
{[%clk 0:01:01.9]} 26... Rc4 {[%clk 0:01:47.2]} 27. Nd3 {[%clk 0:01:01.5]} 27...
Rd5 {[%clk 0:01:46.1]} 28. Nf2 {[%clk 0:00:54.9]} 28... f5 {[%clk 0:01:42.7]}
29. Kc2 {[%clk 0:00:53.5]} 29... a5 {[%clk 0:01:31.9]} 30. bxa5 {[%clk
0:00:50.5]} 30... b4 {[%clk 0:01:31.9]} 31. Kb3 {[%clk 0:00:46.4]} 31... bxc3
{[%clk 0:01:09]} 32. Kxc4 {[%clk 0:00:34.7]} 32... cxb2 {[%clk 0:01:09.6]} 33.
Rxb2 {[%clk 0:00:34.1]} 33... Rxa5 {[%clk 0:01:10.2]} 34. Kd3 {[%clk 0:00:25.8]}
34... Kf6 {[%clk 0:01:09.7]} 35. Rb6 {[%clk 0:00:23.3]} 35... Ra2 {[%clk
0:01:08]} 36. Ke3 {[%clk 0:00:19.2]} 36... d5 {[%clk 0:01:08.6]} 37. f4 {[%clk
0:00:15.2]} 37... Ra3+ {[%clk 0:01:04.1]} 38. Ke2 {[%clk 0:00:14.6]} 38... Ra2+
{[%clk 0:01:04.7]} 39. Ke3 {[%clk 0:00:14.5]} 39... h6 {[%clk 0:01:01.4]} 40.
Kf3 {[%clk 0:00:12.8]} 40... Ra3+ {[%clk 0:01:01.1]} 41. Ke2 {[%clk 0:00:12.9]}
41... Rg3 {[%clk 0:01:01.6]} 42. Kf1 {[%clk 0:00:11.2]} 42... Rc3 {[%clk
0:01:02.2]} 43. Ke2 {[%clk 0:00:11.1]} 43... Rc2+ {[%clk 0:01:01.5]} 44. Kf3
{[%clk 0:00:10.6]} 44... Rc3+ {[%clk 0:01:02]} 45. Ke2 {[%clk 0:00:10.7]} 45...
Rc4 {[%clk 0:01:02.9]} 46. Kf3 {[%clk 0:00:10]} 46... d4 {[%clk 0:01:03.4]} 47.
g4 {[%clk 0:00:09.2]} 47... Rc3+ {[%clk 0:01:02.5]} 48. Ke2 {[%clk 0:00:08.5]}
48... Re3+ {[%clk 0:00:58.5]} 49. Kf1 {[%clk 0:00:06.8]} 49... Rf3 {[%clk
0:00:57.5]} 50. gxf5 {[%clk 0:00:02.9]} 50... Kxf5 {[%clk 0:00:58.4]} 51. Kg2
{[%clk 0:00:03.1]} 51... Rxf4 {[%clk 0:00:57.2]} 52. Rd6 {[%clk 0:00:03.2]}
52... e5 {[%clk 0:00:55.4]} 53. Rd7 {[%clk 0:00:03.5]} 53... g5 {[%clk
0:00:54.9]} 54. Rf7+ {[%clk 0:00:03.4]} 54... Kg6 {[%clk 0:00:53.7]} 55. Rxf4
{[%clk 0:00:03.6]} 55... gxf4 {[%clk 0:00:51.7]} 56. Kf3 {[%clk 0:00:03.9]}
56... Kf5 {[%clk 0:00:52.3]} 57. Ne4 {[%clk 0:00:03.6]} 57... h5 {[%clk
0:00:51.2]} 58. h4 {[%clk 0:00:03.2]} 58... Ke6 {[%clk 0:00:50.7]} 59. Ng5+
{[%clk 0:00:02]} 59... Kd5 {[%clk 0:00:50.7]} 60. Ne4 {[%clk 0:00:02.1]} 60...
d3 {[%clk 0:00:51.1]} 61. Nf2 {[%clk 0:00:01.7]} 61... Kd4 {[%clk 0:00:51.5]}
62. Ne4 {[%clk 0:00:01.7]} 62... Kc4 {[%clk 0:00:44.5]} 63. Nd2+ {[%clk
0:00:02.1]} 63... Kd5 {[%clk 0:00:44.6]} 64. Ne4 {[%clk 0:00:02.8]} 64... Kd4
{[%clk 0:00:45.2]} 65. Nd2 {[%clk 0:00:03.2]} 65... Kc3 {[%clk 0:00:45.4]} 66.
Ne4+ {[%clk 0:00:03.7]} 66... Kc2 {[%clk 0:00:46]} 67. Kf2 {[%clk 0:00:02.1]}
67... d2 {[%clk 0:00:46]} 68. Nxd2 {[%clk 0:00:02.3]} 68... Kxd2 {[%clk
0:00:46.9]} 0-1